Workbook

Sheet 目录
A2: 目 录
A4: 第一部分 一般公共预算
A6: 1、2018年通川区一般公共预算收入执行情况表………………………（2）
A7: 2、2018年通川区一般公共预算支出执行情况表………………………（3）
A8: 3、2018年通川区一般公共预算收支执行情况平衡表…………………（4）
A9: 4、2018年通川区税收返还和转移支付补助执行情况表………………（5）
A10: 5、2018年通川区一般公共预算经济分类科目支出预算执行情况表…（6）
A11: 6、2018年通川区地方政府性债务余额情况表……………………… （7）
A12: 7、2018年通川区地方政府性债务限额情况表……………………… （8）
A13: 8、2018年通川区地方政府性专项债务余额情况表………………… （9）
A14: 9、2018年通川区地方政府性专项债务限额情况表………………… （10）
A17: 第二部分 政府性基金预算
A19: 10、2018年通川区政府性基金收入执行情况表…………………………（12）
A20: 11、2018年通川区政府性基金支出执行情况表…………………………（13）
A21: 12、2018年通川区政府性基金收支执行情况平衡表……………………（14）
A22: 13、2018年通川区政府性基金转移支付补助执行情况表………………（15）
A24: 第三部分 国有资本经营预算
A26: 14、2018年通川区国有资本经营收入执行情况表………………………（17）
A27: 15、2018年通川区国有资本经营支出执行情况表………………………（18）
A28: 16、2018年通川区国有资本经营收支平衡情况表………………………（19）
A31: 第四部分 社会保险基金预算
A33: 17、2018年通川区社会保险基金收入执行情况表………………………（21）
A34: 18、2018年通川区社会保险基金支出执行情况表………………………（22）
A35: 19、2018年通川区社会保险基金结余执行情况表………………………（23）

Sheet 第一部分1
A11: 第 一 部 分
A14: 一 般 公 共 预 算

Sheet 2018年通川区收入（表2）
A1: 表一
A2: 2018年通川区一般公共预算收入执行情况表
H3: 单位：万元
A4: 预 算 科 目 | B4: 年初预算数 | C4: 变动预算数 | D4: 执行数 | E4: 占年初预算% | F4: 去年决算同口径 | G4: 同口径增减% | H4: 备 注
A5: 税收收入小计 | B5: =SUM(B6:B21) -> 46,615 | C5: =SUM(C6:C21) -> 8,387 | D5: 55,002 | E5: =D5/B5*100 -> 117.99
A6: 一、增 值 税 | B6: 18,399 | C6: =D6-B6 -> 3,700 | D6: 22,099 | E6: =D6/B6*100 -> 120.11 | F6: 98892 | G6: =(D6/F6-1)*100 -> -77.65
A7: 二、营 业 税 | C7: =D7-B7 -> 375 | D7: 375 | F7: 41607 | H7: 执行数系营业税改征增值税后，征收的欠税。
A8: 三、企业所得税 | B8: 4,810 | C8: 253 | D8: 5,063 | E8: 105.26 | F8: 37675 | G8: =(D8/F8-1)*100 -> -86.56
A9: 四、企业所得税退税
A10: 五、个人所得税 | B10: 1,750 | C10: 392 | D10: 2,142 | E10: 122.40 | F10: 22785 | G10: -90.60
A11: 六、资源税 | B11: 380 | C11: 151 | D11: 531 | E11: 139.74 | F11: 28804 | G11: -98.16
A12: 七、城市维护建设税 | F12: 28402
A13: 八、房产税 | B13: 1,680 | C13: -310 | D13: 1,370 | E13: 81.55 | F13: 8479 | G13: -83.84
A14: 九、印花税 | B14: 1,560 | C14: -250 | D14: 1,310 | E14: 83.97 | F14: 7294 | G14: -82.04
A15: 十、城镇土地使用税 | B15: 1,200 | C15: -68 | D15: 1,132 | E15: 94.33 | F15: 8600 | G15: -86.84
A16: 十一、土地增值税 | B16: 6,450 | C16: 608 | D16: 7,058 | E16: 109.43 | F16: 36213 | G16: -80.51
A17: 十二、车船税 | B17: 680 | C17: -116 | D17: 564 | E17: 82.94 | F17: 8355 | G17: -93.25
A18: 十三、耕地占用税 | B18: 3,250 | C18: -37 | D18: 3,213 | E18: 98.86 | F18: 76945 | G18: -95.82
A19: 十四、契税 | B19: 6,456 | C19: 3,455 | D19: 9,911 | E19: 153.52 | F19: 51648 | G19: -80.81
A20: 十五、烟叶税 | F20: 513 | G20: -100.00
A21: 十六、环境保护税 | C21: 234 | D21: 234 | H21: 非税收入调整至税收收入
A22: 非税收入 | B22: =SUM(B23:B30) -> 35,970 | C22: =SUM(C23:C30) -> -4,929 | D22: =SUM(D23:D30) -> 31,041 | E22: 86.30 | F22: =SUM(F6:F21) -> 456212 | G22: -93.20
A23: 十七、专项收入 | B23: 3,700 | C23: 179 | D23: 3,879 | E23: 104.84 | F23: 39208 | G23: -90.11
A24: 十八、行政事业性收费收入 | B24: 2,200 | C24: -566 | D24: 1,634 | E24: 74.27 | F24: 120549 | G24: -98.64
A25: 十九、罚没收入 | B25: 4,500 | C25: -2,632 | D25: 1,868 | E25: 41.51 | F25: 27600 | G25: -93.23
A26: 二十、国有资本经营收入 | F26: 12740 | G26: -100.00
A27: 二十一、国有资源(资产)有偿使用收入 | B27: 9,000 | C27: 11,151 | D27: 20,151 | E27: 223.90 | F27: 113032 | G27: -82.17
A28: 二十二、捐赠收入 | B28: 16,070 | C28: -12,804 | D28: 3,266 | E28: 20.32 | F28: 14388
A29: 二十三、政府住房基金收入 | B29: 500 | C29: -257 | D29: 243 | E29: 48.60 | F29: 12281 | G29: -98.02
A30: 二十四、其他收入 | F30: 28608 | G30: -15.62
A31: 一般公共预算收入合计 | B31: =B22+B5 -> 82,585 | C31: =C22+C5 -> 3,458 | D31: 86,043 | E31: =D31/B31*100 -> 104.19 | F31: =#REF!+F22 -> 

Sheet 2018年通川区支出（表3）
A1: 表二
A2: 2018年通川区一般公共预算支出执行情况表
D3: 单位：万元 | G3: 单位：万元
A4: 预 算 科 目 | B4: 年初预算数 | C4: 变动项目 | D4: 执行数 | E4: 累计占预算% | F4: 去年决算 | G4: 同口径增减% | H4: 备 注 | J4: 省级分科目结余 | K4: 2013 | L4: 2012
A5: 一、一般公共服务支出 | B5: 23,989 | C5: =D5-B5 -> 7,099 | D5: 31,088 | E5: =#REF!/D5*100 ->  | F5: 29776 | G5: =(D5-F5)/F5 -> 4.41% | J5: =D5-#REF! -> 
A6: 二、外交支出 | J6: =D6-#REF! -> 
A7: 三、国防支出 | B7: 430 | D7: 25 | E7: =#REF!/D7*100 ->  | F7: 175 | G7: =(D7-F7)/F7 -> -85.71% | J7: =D7-#REF! -> 
A8: 四、公共安全支出 | B8: 15,060 | C8: =D8-B8 -> 1,062 | D8: 16,122 | E8: =#REF!/D8*100 ->  | F8: 15385 | G8: 4.79% | J8: =D8-#REF! -> 
A9: 五、教育支出 | B9: 35,150 | C9: 22,952 | D9: 58,102 | E9: =#REF!/D9*100 ->  | F9: 51475 | G9: 12.87% | J9: =D9-#REF! ->  | L9: -123000
A10: 六、科学技术支出 | B10: 620 | C10: 185 | D10: 805 | E10: =#REF!/D10*100 ->  | F10: 1201 | G10: -32.97% | J10: =D10-#REF! ->  | L10: -10000
A11: 七、文化体育与传媒支出 | B11: 1,515 | C11: 2,378 | D11: 3,893 | E11: =#REF!/D11*100 ->  | F11: 3121 | G11: 24.74% | J11: =D11-#REF! -> 
A12: 八、社会保障和就业支出 | B12: 23,252 | C12: 29,798 | D12: 53,050 | E12: =#REF!/D12*100 ->  | F12: 42362 | G12: 25.23% | J12: =D12-#REF! -> 
A13: 九、医疗卫生与计划生育支出 | B13: 12,650 | C13: 6,028 | D13: 18,678 | E13: =#REF!/D13*100 ->  | F13: 34728 | G13: -46.22% | J13: =D13-#REF! ->  | K13: =-34000-6338-26000-6392-2808-5100 -> -80638
A14: 十、节能环保支出 | B14: 3,980 | C14: -445 | D14: 3,535 | E14: =#REF!/D14*100 ->  | F14: 3851 | G14: -8.21% | J14: =D14-#REF! ->  | L14: -107560
A15: 十一、城乡社区支出 | B15: 2,550 | C15: 2,089 | D15: 4,639 | E15: =#REF!/D15*100 ->  | F15: 8661 | G15: -46.44% | J15: =D15-#REF! ->  | K15: =-3885-2732 -> -6617
A16: 十二、农林水支出 | B16: 13,089 | C16: 33,670 | D16: 46,759 | E16: =#REF!/D16*100 ->  | F16: 38166 | G16: 22.51% | J16: =D16-#REF! ->  | L16: -618000
A17: 十三、交通运输支出 | B17: 3,100 | C17: 3,748 | D17: 6,848 | E17: =#REF!/D17*100 ->  | F17: 15952 | G17: -57.07% | J17: =D17-#REF! ->  | L17: =-133000-285700-111775 -> -530475
A18: 十四、资源勘探信息等支出 | B18: 1,500 | C18: 996 | D18: 2,496 | E18: =#REF!/D18*100 ->  | F18: 2023 | G18: 23.38% | J18: =D18-#REF! -> 
A19: 十五、商业服务业等支出 | B19: 900 | C19: 757 | D19: 1,657 | E19: =#REF!/D19*100 ->  | F19: 3549 | G19: -53.31% | J19: =D19-#REF! -> 
A20: 十六、金融支出 | C20: 96 | D20: 96 | E20: =#REF!/D20*100 ->  | F20: 187 | G20: -48.66% | J20: =D20-#REF! ->  | K20: -8570
A21: 十七、援助其他地区支出 | J21: =D21-#REF! -> 
A22: 十八、国土海洋气象等支出 | B22: 100 | C22: 2,919 | D22: 3,019 | E22: =#REF!/D22*100 ->  | F22: 2610 | G22: 15.67%
A23: 十九、住房保障支出 | B23: 7,500 | C23: 18,928 | D23: 26,428 | E23: =#REF!/D23*100 ->  | F23: 27325 | G23: -3.28% | J23: =D23-#REF! ->  | K23: =-10000-150-30454 -> -40604
A24: 二十、粮油物资储备支出 | B24: 230 | C24: 20 | D24: 250 | E24: =#REF!/D24*100 ->  | F24: 528 | G24: -52.65% | J24: =D24-#REF! ->  | L24: =-23489-120000+44226 -> -99263
A25: 二十一、预备费 | B25: 5,000
A26: 二十二、债务付息支出 | B26: 7,522 | C26: -2,935 | D26: 4,587 | E26: =#REF!/D26*100 ->  | F26: 123 | G26: 3629.27%
A27: 二十三、债务发行费用支出 | B27: 65 | D27: 34 | E27: =#REF!/D27*100 ->  | F27: 2023 | G27: -98.32% | J27: =D27-#REF! -> 
A28: 二十四、其他支出 | D28: 984 | E28: =#REF!/D28*100 ->  | F28: 56 | G28: 1657.14%
A29: 一般公共预算支出合计 | B29: =SUM(B5:B28) -> 158,202 | C29: =SUM(C5:C28) -> 129,345 | D29: =SUM(D5:D28) -> 283,095 | E29: =#REF!/D29*100 ->  | F29: =SUM(F5:F28) -> 283277 | G29: -0.06% | J29: =D29-#REF! -> 

Sheet 2018年通川区平衡表（表4）
A1: 表三
A2: 2018年通川区一般公共预算收支执行情况平衡表
D3: 单位：万元
A4: 收入 | B4: 执行数 | C4: 支出 | D4: 执行数
A5: 一般公共预算收入 | B5: ='2018年通川区收入（表2）'!D31 -> 86,043 | C5: 一般公共预算支出合计 | D5: ='2018年通川区支出（表3）'!D29 -> 283,095
A6: 转移性收入 | B6: =B7+B13+B32 -> 200,361 | C6: 返还性支出
A7: 返还性收入 | B7: =SUM(B8:B12) -> 9,155 | C7: 一般性转移支付支出
A8: 其中：增值税和消费税税收返还收入 | B8: =4967+545 -> 5,512 | C8: 体制补助支出
A9: 所得税基数返还收入 | B9: 1,742 | C9: 均衡性转移支付支出
A10: 成品油价格和税费改革税收返还收入 | B10: 708 | C10: 县级基本财力保障机制奖补资金支出
A11: 其他税收返还收入 | B11: -3,308 | C11: 结算补助支出
A12: 增值税“五五分享”税收返还 | B12: 4,501 | C12: 资源枯竭型城市转移支付补助支出
A13: 一般性转移支付收入 | B13: =SUM(B14:B31) -> 103,371 | C13: 企业事业单位划转补助支出
A14: 体制补助收入 | C14: 成品油税费改革转移支付补助支出
A15: 均衡性转移支付收入 | B15: 42,845 | C15: 基层公检法司转移支付支出
A16: 县级基本财力保障机制奖补资金收入 | B16: 7,537 | C16: 城乡义务教育转移支付支出
A17: 结算补助收入 | B17: 14,058 | C17: 基本养老金转移支付支出
A18: 资源枯竭型城市转移支付补助收入 | C18: 城乡居民医疗保险转移支付支出
A19: 企业事业单位划转补助收入 | B19: 317 | C19: 农村综合改革转移支付支出
A20: 成品油税费改革转移支付补助收入 | B20: 56 | C20: 专项转移支付支出
A21: 基层公检法司转移支付收入 | B21: 1,546 | C21: 一般公共服务
A22: 城乡义务教育转移支付收入 | B22: 9,171 | C22: 外交
A23: 基本养老金转移支付收入 | B23: 5,452 | C23: 国防
A24: 城乡居民医疗保险转移支付收入 | C24: 公共安全
A25: 农村综合改革转移支付收入 | B25: 2,783 | C25: 教育
A26: 产粮(油)大县奖励资金收入 | B26: 160 | C26: 科学技术
A27: 重点生态功能区转移支付收入 | B27: 68 | C27: 文化体育与传媒
A28: 固定数额补助收入 | B28: 7,842 | C28: 社会保障和就业
A29: 革命老区转移支付收入 | B29: 1,056 | C29: 医疗卫生与计划生育
A30: 贫困地区转移支付收入 | B30: 4,998 | C30: 节能环保
A31: 其他一般性转移支付收入 | B31: 5,482 | C31: 城乡社区
A32: 专项转移支付收入 | B32: =SUM(B33:B50) -> 87,835 | C32: 农林水
A33: 其中：一般公共服务 | B33: 573 | C33: 交通运输
A34: 公共安全 | B34: 305 | C34: 资源勘探信息等
A35: 教育 | B35: 8,438 | C35: 商业服务业等
A36: 科学技术 | B36: 361 | C36: 金融
A37: 文化体育与传媒 | B37: 1,548 | C37: 国土海洋气象等
A38: 社会保障和就业 | B38: 21,941 | C38: 住房保障
A39: 医疗卫生 | B39: 8,581 | C39: 粮油物资储备
A40: 节能环保 | B40: 477 | C40: 其他支出
A41: 城乡社区 | B41: 1,423
A42: 农林水 | B42: 16,483
A43: 交通运输 | B43: 6,162
A44: 资源勘探电力信息等 | B44: 827 | C44: 上解上级支出 | D44: =D45+D46+D47 -> 10,034
A45: 商业服务业等 | B45: 624 | C45: 体制上解支出
A46: 金融 | B46: 47 | C46: 出口退税专项上解支出
A47: 国土海洋气象等 | B47: 2,239 | C47: 专项上解支出 | D47: 10,034
A48: 住房保障 | B48: 17,322 | C48: 援助其他地区支出
A49: 粮油物资储备 | C49: 债券还本支出 | D49: =D50+D51 -> 6,956
A50: 其他收入 | B50: 484 | C50: 地方政府债券还本 | D50: 6,956
A51: 接受其他地区援助收入 | C51: 地方政府其他一般债务还本支出
A52: 债务收入 | C52: 债务转贷支出 | D52: =D53 -> 17,192
A53: 地方政府债券收入 | C53: 地方政府一般债券转贷支出 | D53: 17,192
A54: 债务转贷收入 | B54: 33,037 | C54: 增设预算周转金
A55: 国债转贷收入 | C55: 拨付国债转贷资金数
A56: 上年结余收入 | B56: 129 | C56: 国债转贷资金结余
A57: 调入预算稳定调节基金 | B57: 1,152 | C57: 安排预算稳定调节基金 | D57: 3,458
A58: 调入资金 | B58: 13 | C58: 调出资金
A59: 从国有资本经营调入 | B59: 13 | C59: 结转下年支出
A60: 收入总计 | B60: =B5+B6+B54+B56+B57+B58 -> 320,735 | C60: 支出总计 | D60: =D5+D6+D44+D49+D52+D57+D59 -> 320,735

Sheet 2018年税返和转移支付补助执行表（表5）
A1: 2018年市通川区对区税收返还和转移支付补助表
C2: 单位：万元
A3: 支出
A4: 项目 | B4: 预算数 | C4: 备注
A5: 一、对区税收返还 | B5: =SUM(B6:B10) -> 9155
A6: 增值税和消费税税收返还支出 | B6: 4967
A7: 所得税基数返还支出 | B7: 1742
A8: 成品油价格和税费改革税收返还支出 | B8: 708
A9: 其他税收返还支出 | B9: -2763
A10: 增值税五五分享税收返还支出 | B10: 4501
A11: 二、对区转移支付补助 | B11: =B12+B32 -> 191206
A12: （一） 一般性转移支付 | B12: =SUM(B13:B31) -> 103371
A13: 体制补助支出
A14: 均衡性转移支付支出 | B14: 42845
A15: 革命老区转移支付支出 | B15: 1056
A16: 县级基本财力保障机制奖补资金支出 | B16: 7537
A17: 结算补助支出 | B17: 14058
A18: 化解债务补助支出
A19: 资源枯竭型城市转移支付补助支出
A20: 企业事业单位划转补助支出 | B20: 317
A21: 成品油价格和税费改革转移支付补助支出 | B21: 56
A22: 基层公检法司转移支付支出 | B22: 1546
A23: 城乡义务教育等转移支付支出 | B23: 9171
A24: 基本养老保险转移支付支出 | B24: 5452
A25: 城乡居民医疗等转移支付支出
A26: 农村综合改革转移支付支出 | B26: 2783
A27: 产粮（油）大县奖励资金支出 | B27: 160
A28: 重点生态功能区转移支付支出 | B28: 68
A29: 固定数额补助支出 | B29: 7842
A30: 贫困地区转移支付支出 | B30: 4998
A31: 其他一般性转移支付支出 | B31: 5482
A32: （二） 专项转移支付支出 | B32: =SUM(B33:B52) -> 87835
A33: 一般公共服务
A34: 外交
A35: 国防
A36: 公共安全
A37: 教育 | B37: 8438
A38: 科学技术 | B38: 361
A39: 文化体育与传媒
A40: 社会保障和就业 | B40: 21942
A41: 医疗卫生 | B41: 8581
A42: 节能环保 | B42: 477
A43: 城乡社区
A44: 农林水 | B44: 16484
A45: 交通运输 | B45: 6162
A46: 资源勘探电力信息等
A47: 商业服务业等
A48: 金融
A49: 国土海洋气象等
A50: 住房保障 | B50: 17322
A51: 粮油物资储备
A52: 其他支出 | B52: 8068

Sheet 2018年一般公共预算经济分类科目支出执行表（6）
A1: 2018年达州市通川区一般公共预算经济分类科目支出预算表
A2: 单位：万元
A3: 预 算 科 目 | B3: 预算数
A4: 合计 | B4: =B5+B10+B20+B24+B28+B30+B35+B38+B40 -> 283,095
A5: 501 机关工资福利支出 | B5: =SUM(B6:B9) -> 57,463
A6: 工资奖金津补贴 | B6: 26,497
A7: 社会保障缴费 | B7: 8,240
A8: 住房公积金 | B8: 6,087
A9: 其他工资福利支出 | B9: 16,639
A10: 502 机关商品和服务支出 | B10: =SUM(B11:B19) -> 30,128
A11: 办公费 | B11: 13,419
A12: 会议费 | B12: 1,053
A13: 培训费 | B13: 185
A14: 公务接待费 | B14: 232
A15: 被装购置费 | B15: 191
A16: 委托业务费 | B16: 2,177
A17: 公务用车运行维护费 | B17: 824
A18: 维修(护)费 | B18: 1,813
A19: 其他商品和服务支出 | B19: 10,234
A20: 504 机关资本性支出（二） | B20: =SUM(B21:B23) -> 29,698
A21: 设备购置 | B21: 3,839
A22: 基础设施建设 | B22: 17,549
A23: 其他资本性交出 | B23: 8,310
A24: 505 对事业单位经常性补助 | B24: =SUM(B25:B27) -> 64,643
A25: 工资福利支出 | B25: 51,739
A26: 商品和服务支出 | B26: 11,211
A27: 其他对事业单位补助 | B27: 1,693
A28: 506 对事业单位资本性补助 | B28: =SUM(B29) -> 9,800
A29: 资本性支出（一） | B29: 9,800
A30: 509 对个人和家庭的补助 | B30: =SUM(B31:B34) -> 33,532
A31: 社会福利和求助 | B31: 22,452
A32: 离退休费 | B32: 424
A33: 助学金 | B33: 428
A34: 其他对个人和家庭的补助支出 | B34: 10,228
A35: 511 债务利息及费用支出 | B35: 7,587
A36: 国内债务付息 | B36: 7,522
A37: 国内债务发行费用 | B37: 65
A38: 513 转移性支出 | B38: 45,244
A39: 上下级政府间转移性支出 | B39: 45,244
A40: 514 预备费及预留 | B40: 5,000
A41: 预备费 | B41: 5,000

Sheet 2018年通川区债务余额情况表（表7）
A2: 2018年通川区政府债务余额情况表
D3: 单位：万元
A4: 项 目 | B4: 政府债务
C5: 一般政府债务 | D5: 专项政府债务
A6: 2017年末地方政府债务余额 | B6: =SUM(C6:D6) -> 243,562 | C6: 179,771 | D6: 63,791
A7: 2018年地方政府债务变动额 | B7: =SUM(C7:D7) -> 37,004 | C7: -2,996 | D7: 40,000
A8: 2018年末地方政府债务余额 | B8: =SUM(C8:D8) -> 280,566 | C8: 176,775 | D8: 103,791

Sheet 2018年通川区债务限额情况表（表8）
A2: 2018年通川区政府债务限额情况表
D3: 单位：万元
A4: 项 目 | B4: 政府债务
C5: 一般政府债务 | D5: 专项政府债务
A6: 2018年地方政府债务限额 | B6: =SUM(C6:D6) -> 288,355 | C6: 184,564 | D6: 103,791

Sheet 2018年通川区专项债务余额表（表9）
A2: 2018年通川区政府专项债务余额情况表
C3: 单位：万元
A4: 项 目 | B4: 政府债务
C5: 专项政府债务
A6: 2017年末地方政府债务余额 | B6: =SUM(C6:C6) -> 63,791 | C6: 63,791
A7: 2018年地方政府债务变动额 | B7: =SUM(C7:C7) -> 40,000 | C7: 40,000
A8: 2018年末地方政府债务余额 | B8: =SUM(C8:C8) -> 103,791 | C8: 103,791

Sheet 2018年通川区专项债务限额表（表10）
A2: 2018年通川区政府专项债务限额情况表
C3: 单位：万元
A4: 项 目 | B4: 政府债务
C5: 专项政府债务限额
A6: 2018年地方政府债务限额 | B6: =SUM(C6:C6) -> 103,791 | C6: 103,791

Sheet 第二部分11
A11: 第 二 部 分
A14: 政 府 性 基 金 预 算

Sheet 2018年通川区基金收入（表12）
A2: 2018年达州市通川区政府性基金预算收入表
A3: 单位：万元
A4: 收入
A5: 项目 | B5: 执行数
A6: 一、农网还贷资金收入
A7: 二、港口建设费收入
A8: 三、散装水泥专项资金收入
A9: 四、新型墙体材料专项基金收入
A10: 五、国家电影事业发展专项资金收入
A11: 六、新菜地开发建设基金收入
A12: 七、新增建设用地土地有偿使用费收入
A13: 八、城市公用事业附加收入
A14: 九、国有土地收益基金收入 | B14: 6,074
A15: 十、农业土地开发资金收入 | B15: 98
A16: 十一、国有土地使用权出让收入 | B16: 181,561
A17: 十二、大中型水库库区基金收入
A18: 十三、彩票公益金收入
A19: 十四、城市基础设施配套费收入 | B19: 437
A20: 十五、小型水库移民扶助基金收入
A21: 十六、国家重大水利工程建设基金收入
A22: 十七、车辆通行费
A23: 十八、污水处理费收入
A24: 十九、彩票发行机构和彩票销售机构的业务费用
A25: 二十、其他政府性基金收入
A26: 收入合计 | B26: =SUM(B6:B25) -> 188,170
A27: 转移性收入 | B27: =B28+B31+B33 -> 51,138
A28: 政府性基金转移收入 | B28: =SUM(B29:B30) -> 11,138
A29: 政府性基金补助收入 | B29: 11,138
A30: 政府性基金上解收入
A31: 上年结余收入
A32: 调入资金
A33: 地方政府专项债券转贷收入 | B33: 40,000
A34: 地方政府专项债务收入
A35: 收入总计 | B35: =B26+B27 -> 239,308

Sheet 2018年通川区基金支出表（表13）
A2: 2018年达州市通川区政府性基金预算支出表
A3: 单位：万元
A4: 支出
A5: 项目 | B5: 执行数
A6: 一、教育支出
A7: 二、文化体育与传媒支出
A8: 三、社会保障和就业支出
A9: 四、节能环保支出
A10: 五、城乡社区支出 | B10: 233,029
A11: 污水处理费安排的支出
A12: 国有土地使用权出让收入安排的支出 | B12: 224,685
A13: 城市公用事业附加安排的支出
A14: 国有土地收益基金支出 | B14: 6,073
A15: 农业土地开发资金支出 | B15: 98
A16: 新增建设用地有偿使用费安排的支出
A17: 城市基础设施配套费安排的支出 | B17: 2,173
A18: 六、农林水支出 | B18: 572
A19: 七、交通运输支出
A20: 八、资源勘探信息等支出
A21: 九、商业服务业等支出
A22: 十、其他支出 | B22: 1,125
A23: 十一、债务付息支出 | B23: 2,279
A24: 十二、债务发行费用支出 | B24: 44
A26: 支出合计 | B26: =SUM(B6:B10,B18:B24) -> 237,049
A27: 转移性支出 | B27: =SUM(B28,B31:B34) -> 2,259
A28: 政府性基金转移支付 | B28: =SUM(B29:B30) -> 2,259
A29: 政府性基金补助支出
A30: 政府性基金上解支出 | B30: 2,259
A31: 调出资金
A32: 年终结余
A33: 地方政府专项债务还本支出
A34: 地方政府专项债务转贷支出
A35: 支出总计 | B35: =B27+B26 -> 239,308

Sheet 2018年基金收支平衡表（表14）
A2: 2018年达州市通川区政府性基金预算收支平衡表
A3: 单位：万元
A4: 收入 | C4: 支出
A5: 项目 | B5: 执行数 | C5: 项目 | D5: 执行数
A6: 一、农网还贷资金收入 | C6: 一、教育支出
A7: 二、港口建设费收入 | C7: 二、文化体育与传媒支出
A8: 三、散装水泥专项资金收入 | C8: 三、社会保障和就业支出
A9: 四、新型墙体材料专项基金收入 | C9: 四、节能环保支出
A10: 五、国家电影事业发展专项资金收入 | C10: 五、城乡社区支出 | D10: 233,029
A11: 六、新菜地开发建设基金收入 | C11: 污水处理费安排的支出
A12: 七、新增建设用地土地有偿使用费收入 | C12: 国有土地使用权出让收入安排的支出 | D12: 224,685
A13: 八、城市公用事业附加收入 | C13: 城市公用事业附加安排的支出
A14: 九、国有土地收益基金收入 | B14: 6,074 | C14: 国有土地收益基金支出 | D14: 6,073
A15: 十、农业土地开发资金收入 | B15: 98 | C15: 农业土地开发资金支出 | D15: 98
A16: 十一、国有土地使用权出让收入 | B16: 181,561 | C16: 新增建设用地有偿使用费安排的支出
A17: 十二、大中型水库库区基金收入 | C17: 城市基础设施配套费安排的支出 | D17: 2,173
A18: 十三、彩票公益金收入 | C18: 六、农林水支出 | D18: 572
A19: 十四、城市基础设施配套费收入 | B19: 437 | C19: 七、交通运输支出
A20: 十五、小型水库移民扶助基金收入 | C20: 八、资源勘探信息等支出
A21: 十六、国家重大水利工程建设基金收入 | C21: 九、商业服务业等支出
A22: 十七、车辆通行费 | C22: 十、其他支出 | D22: 1,125
A23: 十八、污水处理费收入 | C23: 十一、债务付息支出 | D23: 2,279
A24: 十九、彩票发行机构和彩票销售机构的业务费用 | C24: 十二、债务发行费用支出 | D24: 44
A25: 二十、其他政府性基金收入
A26: 收入合计 | B26: =SUM(B6:B25) -> 188,170 | C26: 支出合计 | D26: =SUM(D6:D10,D18:D24) -> 237,049
A27: 转移性收入 | B27: =B28+B31+B33 -> 51,138 | C27: 转移性支出 | D27: =SUM(D28,D31:D34) -> 2,259
A28: 政府性基金转移收入 | B28: =SUM(B29:B30) -> 11,138 | C28: 政府性基金转移支付 | D28: =SUM(D29:D30) -> 2,259
A29: 政府性基金补助收入 | B29: 11,138 | C29: 政府性基金补助支出
A30: 政府性基金上解收入 | C30: 政府性基金上解支出 | D30: 2,259
A31: 上年结余收入 | C31: 调出资金
A32: 调入资金 | C32: 年终结余
A33: 地方政府专项债券转贷收入 | B33: 40,000 | C33: 地方政府专项债务还本支出
A34: 地方政府专项债务收入 | C34: 地方政府专项债务转贷支出
A35: 收入总计 | B35: =B26+B27 -> 239,308 | C35: 支出总计 | D35: =D27+D26 -> 239,308

Sheet 2018年基金转移支付补助执行表（表15)
A2: 2018年市对区政府性基金转移支付补助情况表
B3: 单位：万元
A4: 预算科目 | B4: 实际执行数
A5: 市补助区转移支付支出 | B5: =SUM(B6:B17) -> 8,879
A6: 国家电影事业发展专项资金
A7: 大中型水库移民后期扶持基金
A8: 小型水库移民扶助基金
A9: 国有土地使用权出让 | B9: 7,181
A10: 农业土地开发资金
A11: 大中型水库库区基金 | B11: 573
A12: 城市基础设施配套费
A13: 国家重大水利工程建设基金
A14: 港口建设费
A15: 民航发展基金
A16: 旅游发展基金收入
A17: 彩票公益金收入 | B17: 1,125

Sheet 第三部门 16
A11: 第 三 部 分
A14: 国 有 资 本 经 营 预 算

Sheet 2018年通川区国资收入（表17）
A2: 2018年通川区国有资本经营收入执行情况表
B3: 单位：万元
A4: 项 目 | B4: 执行数
A5: 一、利润收入
A6: 烟草企业利润收入
A7: 石油石化企业利润收入
A8: 电力企业利润收入
A9: 电信企业利润收入
A10: 煤炭企业利润收入
A11: 有色冶金采掘企业利润收入
A12: 钢铁企业利润收入
A13: 化工企业利润收入
A14: 运输企业利润收入
A15: 电子企业利润收入
A16: 机械企业利润收入
A17: 投资服务企业利润收入
A18: 纺织轻工企业利润收入
A19: 贸易企业利润收入
A20: 建筑施工企业利润收入
A21: 房地产企业利润收入
A22: 建材企业利润收入
A23: 境外企业利润收入
A24: 对外合作企业利润收入
A25: 医药企业利润收入
A26: 农林牧渔企业利润收入
A27: 邮政企业利润收入
A28: 军工企业利润收入
A29: 转制科研院所利润收入
A30: 地质勘查企业利润收入
A31: 卫生体育福利企业利润收入
A32: 教育文化广播企业利润收入
A33: 科学研究企业利润收入
A34: 机关社团企业利润收入
A35: 金融企业利润收入（国资预算）
A36: 其他国有资本经营预算企业利润收入
A37: 二、股利、股息收入
A38: 国有控股公司股利、股息收入
A39: 国有参股公司股利、股息收入
A40: 金融企业股利、股息收入（国资预算）
A41: 其他国有资本经营预算企业股利、股息收入
A42: 三、产权转让收入
A43: 国有股减持收入
A44: 国有股权、股份转让收入
A45: 国有独资企业产权转让收入
A46: 金融企业产权转让收入
A47: 其他国有资本经营预算企业产权转让收入
A48: 四、清算收入
A49: 国有股权、股份清算收入
A50: 国有独资企业清算收入
A51: 其他国有资本经营预算企业清算收入
A52: 五、其他收入 | B52: 60
A53: 其他国有资本经营预算收入 | B53: 60
A55: 区级国有资本经营预算收入 | B55: 60
A56: 国有资本经营预算转移支付收入
A57: 上年结转收入

Sheet 2018年通川区国资支出（表18）
A1: 表十一
A2: 2018年通川区级国有资本经营支出执行情况表
B3: 单位：万元
A4: 项 目 | B4: 执行数
A5: 一、社会保障和就业支出
A6: （一）补充全国社会保障基金支出
A7: 其中：国有资本经营预算补充社保基金支出
A8: 二、国有资本经营预算支出 | B8: =SUM(B9:B18) -> 47
A9: （一）解决历史遗留问题及改革成本支出
A10: 其中：厂办大集体改革支出
A11: “三供一业”移交补助支出
A12: 国有企业办职教幼教补助支出
A13: 国有企业办公共服务机构移交补助支出
A14: 国有企业退休人员社会化管理补助支出
A15: 国有企业棚户区改造支出
A16: 国有企业改革成本支出 | B16: 47
A17: 离休干部医药费补助支出
A18: 其他解决历史遗留问题及改革成本支出
A19: （二）国有企业资本金注入
A20: 其中：国有经济结构调整支出
A21: 公益性设施投资支出
A22: 前瞻性战略性产业发展支出
A23: 生态环境保护支出
A24: 支持科技进步支出
A25: 保障国家经济安全支出
A26: 对外投资合作支出
A27: 其他国有企业资本金注入
A28: （三）国有企业政策性补贴
A29: 其中：国有企业政策性补贴
A30: （四）金融国有资本经营预算支出
A31: 其中：资本性支出
A32: 改革性支出
A33: 其他金融国有资本经营预算支出
A34: （五）其他国有资本经营预算支出
A35: 其中：其他国有资本经营预算支出
A36: 煤炭行业化解过剩产能支出
A37: 三、转移性支出 | B37: =B38 -> 13
A38: （一）调出资金 | B38: 13
A39: 其中：国有资本经营预算调出资金 | B39: 13
A41: 区级国有资本经营预算支出 | B41: =B37+B8 -> 60
A42: 结转下年支出

Sheet 2018年通川区国资收支平衡表(表19）
A1: 2018年通川区国有资本经营收支执行平衡表
B2: 单位：万元
A3: 项 目 | B3: 执行数 | C3: 项 目 | D3: 执行数
A4: 一、利润收入 | C4: 一、社会保障和就业支出
A5: 烟草企业利润收入 | C5: （一）补充全国社会保障基金支出
A6: 石油石化企业利润收入 | C6: 其中：国有资本经营预算补充社保基金支出
A7: 电力企业利润收入 | C7: 二、国有资本经营预算支出 | D7: =SUM(D8:D17) -> 47
A8: 电信企业利润收入 | C8: （一）解决历史遗留问题及改革成本支出
A9: 煤炭企业利润收入 | C9: 其中：厂办大集体改革支出
A10: 有色冶金采掘企业利润收入 | C10: “三供一业”移交补助支出
A11: 钢铁企业利润收入 | C11: 国有企业办职教幼教补助支出
A12: 化工企业利润收入 | C12: 国有企业办公共服务机构移交补助支出
A13: 运输企业利润收入 | C13: 国有企业退休人员社会化管理补助支出
A14: 电子企业利润收入 | C14: 国有企业棚户区改造支出
A15: 机械企业利润收入 | C15: 国有企业改革成本支出 | D15: 47
A16: 投资服务企业利润收入 | C16: 离休干部医药费补助支出
A17: 纺织轻工企业利润收入 | C17: 其他解决历史遗留问题及改革成本支出
A18: 贸易企业利润收入 | C18: （二）国有企业资本金注入
A19: 建筑施工企业利润收入 | C19: 其中：国有经济结构调整支出
A20: 房地产企业利润收入 | C20: 公益性设施投资支出
A21: 建材企业利润收入 | C21: 前瞻性战略性产业发展支出
A22: 境外企业利润收入 | C22: 生态环境保护支出
A23: 对外合作企业利润收入 | C23: 支持科技进步支出
A24: 医药企业利润收入 | C24: 保障国家经济安全支出
A25: 农林牧渔企业利润收入 | C25: 对外投资合作支出
A26: 邮政企业利润收入 | C26: 其他国有企业资本金注入
A27: 军工企业利润收入 | C27: （三）国有企业政策性补贴
A28: 转制科研院所利润收入 | C28: 其中：国有企业政策性补贴
A29: 地质勘查企业利润收入 | C29: （四）金融国有资本经营预算支出
A30: 卫生体育福利企业利润收入 | C30: 其中：资本性支出
A31: 教育文化广播企业利润收入 | C31: 改革性支出
A32: 科学研究企业利润收入 | C32: 其他金融国有资本经营预算支出
A33: 机关社团企业利润收入 | C33: （五）其他国有资本经营预算支出
A34: 金融企业利润收入（国资预算） | C34: 其中：其他国有资本经营预算支出
A35: 其他国有资本经营预算企业利润收入 | C35: 煤炭行业化解过剩产能支出
A36: 二、股利、股息收入 | C36: 三、转移性支出 | D36: =D37 -> 13
A37: 国有控股公司股利、股息收入 | C37: （一）调出资金 | D37: 13
A38: 国有参股公司股利、股息收入 | C38: 其中：国有资本经营预算调出资金 | D38: 13
A39: 金融企业股利、股息收入（国资预算）
A40: 其他国有资本经营预算企业股利、股息收入
A41: 三、产权转让收入
A42: 国有股减持收入
A43: 国有股权、股份转让收入
A44: 国有独资企业产权转让收入
A45: 金融企业产权转让收入
A46: 其他国有资本经营预算企业产权转让收入
A47: 四、清算收入
A48: 国有股权、股份清算收入
A49: 国有独资企业清算收入
A50: 其他国有资本经营预算企业清算收入
A51: 五、其他收入 | B51: 60
A52: 其他国有资本经营预算收入 | B52: 60
A54: 区级国有资本经营预算收入 | B54: 60 | C54: 区级国有资本经营预算支出 | D54: 60
A55: 国有资本经营预算转移支付收入
A56: 上年结转收入 | C56: 结转下年支出

Sheet 第四部分20
A11: 第 四 部 分
A14: 社 会 保 险 基 金 预 算

Sheet 2018通川区社保基金收入（表21）
A2: 2018年通川区社会保险基金收入执行情况表
B3: 单位：万元
A4: 项 目 | B4: 执行数
A5: 社会保险基金收入合计 | B5: =B6+B12 -> 8,122
A6: 一、城乡居民基本养老保险基金收入 | B6: =SUM(B7:B11) -> 8,122
A7: 其中：个人缴费收入 | B7: 1,890
A8: 利息收入 | B8: 225
A9: 财政补贴收入 | B9: 5,784
A10: 其他收入 | B10: 157
A11: 转移收入 | B11: 66

Sheet 2018通川区社保基金支出（表22）
A2: 2018年通川区社会保险基金支出执行情况表
B3: 单位：万元
A4: 项 目 | B4: 执行数
A5: 社会保险基金支出合计 | B5: =B6+B12 -> 6,408
A6: 一、城乡居民保险基金支出 | B6: =SUM(B7:B11) -> 6,408
A7: 其中：基础养老金支出 | B7: 5,395
A8: 个人账户养老金支出 | B8: 880
A9: 丧葬抚恤补助支出 | B9: 130
A10: 其他支出
A11: 转移支出 | B11: 3

Sheet 2018通川区社保基金结余（表23）
A2: 2018年通川区社会保险基金结余执行情况表
B3: 单位：万元
A4: 项 目 | B4: 执行数
A5: 社会保险基金本年年末滚存结余 | B5: =B6+B7 -> 13,453
A6: 社会保险基金本年收支结余 | B6: =B8+B10 -> 1,714
A7: 社会保险基金上年滚存结余 | B7: 11,739
A8: 城乡居民保险基金本年收支结余 | B8: 1,714
A9: 城乡居民保险基金年末滚存结余 | B9: 13,454
